bitfinex/quotes_SOLUSD_20240713
["timestamp","ask_amount","ask_price","bid_price","bid_amount"]
[1720836410719,6.4919,139.13,139.06,1.01182988]
[1720836411034,6.4919,139.13,139.08,11.42]
[1720836411235,6.4919,139.13,139.09,1.01161164]
[1720836411435,6.4919,139.13,139.09,12.43161164]
[1720836411818,6.4919,139.13,139.09,11.42]
[1720836412238,6.4919,139.13,139.05,45.0]
[1720836412418,6.4919,139.13,139.09,11.42]
[1720836413139,6.4919,139.13,139.08,11.42]
[1720836416756,6.4919,139.13,139.04,45.0]
[1720836416927,6.4919,139.13,139.08,11.42]
[1720836418233,6.4919,139.13,139.03,20.8573956]
[1720836418439,6.4919,139.13,139.08,11.42]
[1720836418641,6.4919,139.13,139.03,20.8573956]
[1720836418944,6.4919,139.13,139.08,11.42]
[1720836420728,17.9119,139.13,139.07,11.42]
[1720836421236,17.9119,139.13,139.03,20.8573956]
[1720836421423,11.42,139.12,139.04,45.0]
[1720836421623,11.42,139.12,139.07,11.42]
[1720836423853,17.9119,139.13,139.07,11.42]
[1720836424229,17.9119,139.13,139.04,45.0]
[1720836424424,17.9119,139.13,139.07,11.42]
[1720836424933,6.4919,139.13,139.07,11.42]
[1720836425137,17.9119,139.13,139.07,11.42]
[1720836425541,17.9119,139.13,139.03,20.8573956]
[1720836425751,11.42,139.12,139.07,11.42]
[1720836426119,11.42,139.12,139.03,20.8573956]
[1720836426345,11.42,139.12,139.07,11.42]
[1720836426537,11.42,139.12,139.03,20.8573956]
[1720836426748,11.42,139.12,139.06,11.42]
[1720836427752,11.42,139.12,139.07,11.42]
[1720836428739,17.9119,139.13,139.07,11.42]
[1720836430236,11.42,139.11,139.03,20.8573956]
[1720836430436,11.42,139.11,139.05,11.42]
[1720836430641,11.42,139.11,139.03,0.8573956]
[1720836430845,11.42,139.11,139.05,11.42]
[1720836432352,15.8645,139.12,139.04,11.42]
[1720836432558,11.42,139.1,139.04,11.42]
[1720836434240,11.42,139.1,139.03,0.8573956]
[1720836434445,11.42,139.1,139.05,11.42]
[1720836434644,20.0,139.09,139.03,0.8573956]
[1720836434858,20.0,139.09,139.05,11.42]
[1720836435230,31.42,139.09,139.03,0.8573956]
[1720836435439,15.8645,139.08,139.03,12.2773956]
[1720836436638,15.8645,139.08,139.04,11.42]
[1720836437039,15.8645,139.08,139.03,0.8573956]
[1720836437336,15.8645,139.08,139.03,12.2773956]
[1720836437541,20.0,139.07,139.03,0.8573956]
[1720836437756,20.0,139.07,139.03,12.2773956]
[1720836438537,20.0,139.07,139.03,0.8573956]
[1720836438744,20.0,139.07,139.03,12.2773956]
[1720836438962,27.2845,139.08,139.03,12.2773956]
[1720836439440,15.8645,139.08,139.04,11.42]
[1720836441080,16.2969,139.12,139.07,11.42]
[1720836441660,27.7169,139.12,139.05,0.59009852]
[1720836441870,27.7169,139.12,139.06,11.42]
[1720836442578,20.0,139.11,139.06,11.42]
[1720836443079,31.42,139.11,139.03,0.8573956]
[1720836443251,31.42,139.11,139.06,11.42]
[1720836445770,31.42,139.11,139.03,0.8573956]
[1720836445972,31.42,139.11,139.05,11.42]
[1720836447288,11.42,139.1,139.05,11.42]
[1720836447881,11.42,139.1,139.03,0.8573956]
[1720836448193,20.0,139.11,139.04,11.42]
[1720836448358,11.42,139.1,139.04,11.42]
[1720836448562,11.42,139.09,139.04,11.42]
[1720836450188,11.42,139.09,139.03,12.2773956]
[1720836451681,22.3629,139.08,139.03,0.8573956]
[1720836451886,33.7829,139.08,139.03,12.2773956]
[1720836454871,22.3629,139.08,139.03,12.2773956]
[1720836455595,22.3629,139.08,139.03,0.8573956]
[1720836455783,22.3629,139.08,139.03,12.2773956]
[1720836456695,33.7829,139.08,139.03,12.2773956]
[1720836458097,22.3629,139.08,139.04,1.43785254]
[1720836458298,22.3629,139.08,139.03,12.2773956]
[1720836458918,22.3629,139.08,139.04,11.42]
[1720836460384,22.3629,139.08,139.03,12.2773956]
[1720836461177,33.7829,139.08,139.03,12.2773956]
[1720836462502,22.3629,139.08,139.03,12.2773956]
[1720836465404,22.3629,139.08,139.03,0.8573956]
[1720836465704,22.3629,139.08,139.03,12.2773956]
[1720836465888,22.3629,139.08,139.03,0.8573956]
[1720836466089,22.3629,139.08,139.03,12.2773956]
[1720836468516,22.3629,139.08,139.03,0.8573956]
[1720836468812,22.3629,139.08,139.03,12.2773956]
[1720836471721,33.7829,139.08,139.03,0.8573956]
[1720836473013,22.3629,139.08,139.03,0.8573956]
[1720836473208,33.7829,139.08,139.03,0.8573956]
[1720836473636,22.3629,139.08,139.03,12.2773956]
[1720836476718,22.3629,139.08,139.03,0.8573956]
[1720836476906,22.3629,139.08,139.03,12.2773956]
[1720836479734,22.3629,139.08,139.03,0.8573956]
[1720836479936,11.42,139.07,139.03,0.8573956]
[1720836480239,31.42,139.07,139.03,0.8573956]
[1720836480546,21.7964,139.05,138.93,262.73421247]
[1720836480718,21.7964,139.05,138.97,11.42]
[1720836480719,11.42,139.03,138.97,11.42]
[1720836480917,11.42,139.03,138.91,10.22339756]
[1720836481129,11.42,139.02,138.97,11.42]
[1720836482235,15.5002,139.01,138.91,7.24745747]
[1720836482422,26.9202,139.01,138.95,11.42]
[1720836483438,26.9202,139.01,138.92,0.04265352]
[1720836483439,11.42,138.98,138.92,0.04265352]
[1720836483641,11.42,138.98,138.92,11.46265352]
[1720836483843,11.42,138.98,138.93,11.42]
[1720836484230,11.42,138.98,138.92,0.04265352]
[1720836484231,11.42,138.99,138.92,0.04265352]
[1720836484539,11.42,138.99,138.93,11.42]
[1720836484749,11.42,138.99,138.94,11.42]
[1720836485245,11.42,138.99,138.92,0.04265352]
[1720836485426,11.42,138.99,138.94,11.42]
[1720836485827,11.42,138.99,138.93,11.42]
[1720836486534,6.2962,139.0,138.93,11.42]
[1720836486731,17.7162,139.0,138.95,11.42]
[1720836487457,6.2962,139.0,138.95,11.42]
[1720836487629,17.7162,139.0,138.95,11.42]
[1720836488745,6.2962,139.0,138.95,11.42]
[1720836491057,17.7162,139.0,138.94,11.42]
[1720836491731,17.7162,139.0,138.95,11.42]
[1720836492640,6.2962,139.0,138.95,11.42]
[1720836494146,6.2962,139.0,138.96,11.42]
[1720836495057,6.2962,139.0,138.92,0.04265352]
[1720836495237,6.2962,139.0,138.95,11.42]
[1720836495440,26.9202,139.01,138.95,11.42]
[1720836495630,15.5002,139.01,138.97,11.42]
[1720836495836,15.5002,139.01,138.98,11.42]
[1720836497059,15.5002,139.01,138.92,6.33845352]
[1720836497227,15.5002,139.01,138.97,11.42]
[1720836497432,15.5002,139.01,138.93,20.0]
[1720836497742,15.5002,139.01,138.97,11.42]
[1720836498258,15.5002,139.01,138.98,11.42]
[1720836498639,15.5002,139.01,138.93,16.3156]
[1720836498955,15.5002,139.01,138.98,11.42]
[1720836500246,15.5002,139.01,138.94,65.0]
[1720836500444,15.5002,139.01,138.98,11.42]
[1720836501866,15.5002,139.01,138.94,65.0]
[1720836502164,15.5002,139.01,138.98,11.42]
[1720836502741,15.5002,139.01,138.97,11.42]
[1720836503658,15.5002,139.01,138.98,11.42]
[1720836504861,15.5002,139.01,138.97,11.42]
[1720836505158,15.5002,139.01,138.98,11.42]
[1720836505771,15.5002,139.01,138.99,11.42]
[1720836507650,15.5002,139.01,138.94,45.0]
[1720836507958,15.5002,139.01,138.97,11.42]
[1720836512870,6.5973,139.0,138.92,0.04265352]
[1720836513048,6.5973,139.0,138.96,11.42]
[1720836516277,6.5973,139.0,138.92,0.04265352]
[1720836516485,6.5973,139.0,138.96,11.42]
[1720836516784,6.5973,139.0,138.92,0.04265352]
[1720836516982,6.5973,139.0,138.95,11.42]
[1720836517275,6.5973,139.0,138.96,11.42]
[1720836517987,6.5973,139.0,138.92,0.04265352]
[1720836518150,6.5973,139.0,138.96,11.42]
[1720836518650,18.0173,139.0,138.92,0.04265352]
[1720836518855,18.0173,139.0,138.94,11.42]
[1720836519471,6.5973,139.0,138.94,11.42]
[1720836519675,6.5973,139.0,138.95,11.42]
[1720836524486,6.5973,139.0,138.97,11.42]
[1720836524784,15.5002,139.01,138.98,11.42]
[1720836524965,15.5002,139.01,138.92,0.04265352]
[1720836525161,15.5002,139.01,138.98,11.42]
[1720836525381,15.5002,139.01,138.99,11.42]
[1720836525773,15.5002,139.01,138.92,1.48153527]
[1720836526087,15.5002,139.01,138.98,11.42]
[1720836527462,15.5002,139.01,138.92,20.04265352]
[1720836527766,15.5002,139.01,138.98,11.42]
[1720836528168,15.5002,139.01,138.92,20.04265352]
[1720836528369,15.5002,139.01,138.98,11.42]
[1720836529171,15.5002,139.01,138.92,20.04265352]
[1720836529497,15.5002,139.01,138.97,11.42]
[1720836530390,26.9202,139.01,138.96,11.42]
[1720836530699,15.5002,139.01,138.96,11.42]
[1720836531383,15.5002,139.01,138.96,10.92]
[1720836531901,26.9202,139.01,138.96,10.92]
[1720836532201,18.0423,139.0,138.92,0.04265352]
[1720836532391,11.42,138.99,138.94,11.42]
[1720836532600,11.42,138.99,138.92,0.04265352]
[1720836532779,11.42,138.99,138.94,11.42]
[1720836532973,38.0423,139.0,138.94,11.42]
[1720836533604,26.6223,139.0,138.96,11.42]
[1720836534201,26.6223,139.0,138.95,11.42]
[1720836535603,6.6223,139.0,138.95,11.42]
[1720836536182,6.6223,139.0,138.96,11.42]
[1720836543807,6.6223,139.0,138.97,11.42]
[1720836547412,15.5002,139.01,138.98,1.43770481]
[1720836547603,15.5002,139.01,138.92,1.48035833]
[1720836547812,15.5002,139.01,139.0,11.42]
[1720836548490,15.5002,139.01,138.99,11.42]
[1720836554117,22.6273,139.04,138.99,11.42]
[1720836554327,22.6273,139.04,139.0,11.42]
[1720836554525,22.6273,139.04,138.96,11.42]
[1720836554701,22.6273,139.04,139.01,11.42]
[1720836556637,22.6273,139.04,139.0,11.42]
[1720836558609,22.6273,139.04,139.01,11.42]
[1720836559809,22.6273,139.04,139.02,11.42]
[1720836560832,16.3822,139.04,139.02,11.42]
[1720836561703,16.3822,139.04,139.03,11.42]
[1720836563710,16.3822,139.04,139.02,11.42]
[1720836564631,22.7422,139.04,139.02,11.42]
[1720836564814,20.0,139.03,139.0,11.42]
[1720836566110,20.0,139.03,138.94,15.9678]
[1720836566308,20.0,139.03,138.98,11.42]
[1720836567634,11.42,139.02,138.92,6.65355352]
[1720836567808,11.42,139.02,138.96,11.42]
[1720836568314,20.0,139.03,138.96,11.42]
[1720836568530,20.0,139.01,138.97,11.42]
[1720836568934,11.42,139.02,138.97,11.42]
[1720836569131,20.0,139.01,138.97,11.42]
[1720836569524,20.0,139.01,138.96,11.42]
[1720836570025,20.0,139.01,138.92,0.04265352]
[1720836570210,31.42,139.01,138.96,11.42]
[1720836572228,20.0,139.01,138.96,11.42]
[1720836572543,20.0,139.01,138.97,11.42]
[1720836573230,31.42,139.02,138.97,11.42]
[1720836573430,20.0,139.02,138.97,11.42]
[1720836573641,31.42,139.02,138.97,11.42]
[1720836573838,31.42,139.02,138.92,0.04265352]
[1720836574138,31.42,139.02,138.97,11.42]
[1720836574723,31.42,139.02,138.96,11.42]
[1720836576243,31.42,139.02,138.97,11.42]
[1720836576447,31.42,139.02,138.96,11.42]
[1720836577548,31.42,139.02,138.92,0.04265352]
[1720836577852,11.42,139.01,138.95,11.42]
[1720836578023,15.0343,139.0,138.95,11.42]
[1720836579046,21.3943,139.0,138.95,11.42]
[1720836582040,21.3943,139.0,138.96,11.42]
[1720836586156,21.3943,139.0,138.97,11.42]
[1720836586535,21.3943,139.0,138.92,1.25853694]
[1720836586536,15.0343,139.0,138.98,12.63735794]
[1720836586833,20.0,139.02,138.99,11.42]
[1720836587047,20.0,139.03,138.99,11.42]
[1720836589361,20.0,139.03,138.98,11.42]
[1720836589779,20.0,139.03,138.99,11.42]
[1720836590461,31.42,139.03,138.98,11.42]
[1720836591854,31.42,139.03,138.92,0.04265352]
[1720836592056,11.42,139.02,138.97,11.42]
[1720836592243,11.42,139.02,138.96,11.42]
[1720836592639,11.42,139.02,138.92,0.04265352]
[1720836592832,11.42,139.01,138.92,0.04265352]
[1720836593264,11.42,139.01,138.96,11.42]
[1720836594758,11.42,139.02,138.96,11.42]
[1720836595559,11.42,139.02,138.97,1.43630837]
[1720836596554,11.42,139.02,138.97,12.85630837]
[1720836596756,11.42,139.02,138.97,11.42]
[1720836597569,20.0,139.03,138.98,1.43897807]
[1720836597864,31.42,139.03,138.98,12.85897807]
[1720836598082,31.42,139.03,138.98,11.42]
[1720836598362,11.42,139.02,138.96,11.42]
[1720836598951,11.42,139.01,138.96,11.42]
[1720836599866,11.42,139.02,138.96,11.42]
[1720836603663,11.42,138.99,138.94,11.42]
[1720836604378,27.8195,139.0,138.95,11.42]
[1720836604556,16.3995,139.0,138.95,11.42]
[1720836604874,27.8195,139.0,138.95,11.42]
[1720836605262,16.3995,139.0,138.95,11.42]
[1720836605467,27.8195,139.0,138.92,0.04265352]
[1720836605663,27.8195,139.0,138.95,11.42]
[1720836605865,27.8195,139.0,138.94,11.42]
[1720836607185,27.8195,139.0,138.95,11.42]
[1720836607348,16.3995,139.0,138.96,1.43550914]
[1720836607555,16.3995,139.0,138.95,11.42]
[1720836607866,16.3995,139.0,138.96,11.42]
[1720836610569,16.3995,139.0,138.95,11.42]
[1720836611383,16.3995,139.0,138.96,11.42]
[1720836612285,27.8195,139.0,138.95,11.42]
[1720836612984,27.8195,139.0,138.94,11.42]
[1720836613175,27.8195,139.0,138.92,0.04265352]
[1720836613487,27.8195,139.0,138.94,11.42]
[1720836613872,16.3995,139.0,138.96,11.42]
[1720836614894,27.8195,139.0,138.92,0.04265352]
[1720836615185,34.2118,139.0,138.95,11.42]
[1720836615673,34.2118,139.0,138.92,20.04265352]
[1720836615982,11.42,138.98,138.93,11.42]
[1720836617566,11.42,138.98,138.92,11.46265352]
[1720836617769,11.42,138.97,138.92,11.46265352]
[1720836618268,11.42,138.94,138.92,0.04265352]
[1720836618477,16.3995,138.92,138.89,0.8573956]
[1720836618781,11.42,138.9,138.89,0.8573956]
[1720836618971,31.42,138.9,138.89,0.8573956]
[1720836620185,16.3995,138.92,138.89,0.8573956]
[1720836620586,20.0,138.91,138.89,0.8573956]
[1720836622794,31.42,138.91,138.89,0.8573956]
[1720836626873,11.42,138.9,138.89,0.8573956]
[1720836627600,31.42,138.91,138.89,0.8573956]
[1720836629990,20.0,138.91,138.89,0.8573956]
[1720836631504,17.5673,138.9,138.89,0.8573956]
[1720836631892,37.5673,138.9,138.89,0.8573956]
[1720836637586,92.5673,138.9,138.89,0.8573956]
[1720836638401,47.5673,138.9,138.89,0.8573956]
[1720836638595,92.5673,138.9,138.89,0.8573956]
[1720836641724,71.0273,138.9,138.89,0.8573956]
[1720836642023,26.0273,138.9,138.89,0.8573956]
[1720836642211,37.5673,138.9,138.89,0.8573956]
[1720836642411,31.54,138.9,138.89,0.8573956]
[1720836646513,20.0,138.9,138.89,0.8573956]
[1720836646755,31.54,138.9,138.89,0.8573956]
[1720836647301,20.0,138.9,138.89,0.8573956]
[1720836649620,31.54,138.9,138.89,0.8573956]
[1720836661046,92.5341,138.9,138.81,16.2014]
[1720836661224,11.54,138.86,138.8,17.999]
[1720836661415,55.0,138.89,138.8,11.54]
[1720836661416,11.54,138.85,138.8,11.54]
[1720836662241,11.54,138.85,138.78,15.0652]
[1720836662536,11.54,138.85,138.8,11.54]
[1720836662740,6.3744,138.88,138.83,5.0419]
[1720836662929,31.54,138.87,138.84,5.0416]
[1720836663436,31.54,138.87,138.83,5.042]
[1720836663817,31.54,138.87,138.82,11.54]
[1720836664743,31.54,138.87,138.82,5.0422]
[1720836665343,11.54,138.86,138.82,5.0422]
[1720836665741,11.54,138.86,138.81,16.5828]
[1720836666233,20.0,138.87,138.81,16.5828]
[1720836666425,20.0,138.87,138.78,15.0652]
[1720836666626,20.0,138.87,138.84,5.0416]
[1720836666839,20.0,138.87,138.83,16.5819]
[1720836667154,31.54,138.87,138.83,5.0419]
[1720836667333,31.54,138.87,138.82,16.5824]
[1720836667538,11.54,138.87,138.82,16.5824]
[1720836667845,11.54,138.87,138.83,5.042]
[1720836668037,11.54,138.87,138.79,45.0]
[1720836668235,11.54,138.87,138.82,11.54]
[1720836668626,11.54,138.87,138.83,5.042]
[1720836669132,11.54,138.87,138.82,11.54]
[1720836669133,11.54,138.87,138.82,5.0422]
[1720836669325,11.54,138.87,138.82,16.5822]
[1720836669726,11.54,138.87,138.81,5.0428]
[1720836669926,11.54,138.87,138.81,16.5828]
[1720836669927,20.0,138.86,138.81,16.5828]
[1720836670741,20.0,138.86,138.82,5.41200856]
[1720836670942,11.54,138.87,138.83,5.042]
[1720836671251,25.9941,138.9,138.81,5.41230866]
[1720836671452,11.54,138.86,138.78,15.0652]
[1720836671768,20.0,138.86,138.81,16.5826]
[1720836671958,20.0,138.86,138.82,17.61683517]
[1720836672155,15.9941,138.9,138.84,5.0415]
[1720836672453,20.0,138.88,138.84,5.0415]
[1720836672834,31.54,138.88,138.83,16.5819]
[1720836675168,31.54,138.88,138.83,5.0419]
[1720836675340,31.54,138.88,138.83,16.5819]
[1720836676473,11.54,138.87,138.82,11.54]
[1720836676639,11.54,138.87,138.78,15.0652]
[1720836676842,20.0,138.88,138.79,65.65433087]
[1720836677042,11.54,138.86,138.8,0.65428373]
[1720836677261,11.54,138.87,138.8,0.65428373]
[1720836677467,11.54,138.87,138.82,11.54]
[1720836677951,11.54,138.88,138.82,11.54]
[1720836678167,20.0,138.87,138.83,0.65465918]
[1720836678462,20.0,138.87,138.83,5.0421]
[1720836678670,11.54,138.87,138.83,5.0421]
[1720836678848,11.54,138.87,138.82,5.0423]
[1720836679349,11.54,138.86,138.79,65.0]
[1720836679551,11.54,138.86,138.8,11.54]
[1720836679861,11.54,138.86,138.81,5.0426]
[1720836680172,20.0,138.89,138.81,16.5826]
[1720836680358,11.54,138.86,138.81,5.0428]
[1720836680556,31.54,138.86,138.81,5.0428]
[1720836680871,11.54,138.86,138.81,16.5828]
[1720836681380,11.54,138.86,138.81,11.54]
[1720836681750,11.54,138.86,138.81,5.0428]
[1720836684879,55.0,138.88,138.81,5.0428]
[1720836685174,11.54,138.86,138.81,5.0428]
[1720836685761,31.54,138.87,138.82,5.0424]
[1720836685960,31.54,138.87,138.82,16.5824]
[1720836688563,31.54,138.87,138.81,5.0427]
[1720836688564,16.293,138.86,138.81,5.0427]
[1720836688769,31.54,138.85,138.8,5.0431]
[1720836689072,31.54,138.85,138.8,16.5831]
[1720836689590,31.54,138.85,138.8,11.54]
[1720836691790,20.0,138.85,138.8,16.5832]
[1720836693965,20.0,138.85,138.81,16.5828]
[1720836694169,11.54,138.87,138.82,16.5824]
[1720836694882,10.43300617,138.92,138.84,11.54]
[1720836695094,7.49376751,138.92,138.86,16.5807]
[1720836695381,11.54,138.91,138.85,16.5813]
[1720836696781,20.0,138.9,138.85,16.5813]
[1720836697474,31.54,138.9,138.83,6.3925]
[1720836697686,31.54,138.9,138.81,16.1746]
[1720836697880,31.54,138.9,138.82,45.0]
[1720836699594,31.54,138.9,138.81,16.1746]
[1720836699799,20.0,138.9,138.82,45.0]
[1720836701176,20.0,138.9,138.83,0.49144768]
[1720836701885,20.0,138.9,138.82,45.0]
[1720836705372,20.0,138.9,138.86,11.54]
[1720836705686,20.0,138.9,138.85,11.54]
[1720836706394,31.54,138.9,138.85,11.54]
[1720836707899,31.54,138.9,138.82,45.0]
[1720836708087,31.54,138.9,138.85,11.54]
[1720836708903,20.0,138.9,138.85,11.54]
[1720836709193,20.0,138.9,138.82,45.0]
[1720836709369,20.0,138.9,138.85,11.54]
[1720836709573,31.54,138.9,138.84,11.54]
[1720836710290,30.0,138.9,138.77,23.60498542]
[1720836710493,11.54,138.88,138.78,20.0]
[1720836710703,20.0,138.87,138.82,11.54]
[1720836710882,31.54,138.87,138.82,11.54]
[1720836711298,22.0444,138.86,138.77,16.3887]
[1720836711500,20.0,138.85,138.8,11.54]
[1720836712002,20.0,138.85,138.81,16.5826]
[1720836712307,20.0,138.85,138.81,5.0426]
[1720836712904,20.0,138.85,138.81,16.5826]
[1720836714400,20.0,138.85,138.8,5.0431]
[1720836714703,20.0,138.85,138.81,11.54]
[1720836715482,20.0,138.85,138.81,16.5828]
[1720836716589,20.0,138.85,138.81,11.54]
[1720836716786,20.0,138.85,138.8,16.5831]
[1720836718895,31.54,138.85,138.8,5.0431]
[1720836719213,31.54,138.85,138.8,16.5831]
[1720836719393,20.0,138.85,138.8,16.5831]
[1720836719597,20.0,138.85,138.81,5.0428]
[1720836719797,20.0,138.85,138.81,18.02322104]
[1720836720112,20.0,138.85,138.81,16.5828]
[1720836720300,20.0,138.85,138.82,5.0424]
[1720836720908,20.0,138.85,138.81,16.5827]
[1720836721593,20.0,138.85,138.82,5.0423]
[1720836723322,20.0,138.85,138.81,11.54]
[1720836723492,20.0,138.85,138.81,16.5826]
[1720836724502,20.0,138.85,138.77,16.3887]
[1720836724709,20.0,138.85,138.81,11.54]
[1720836724904,20.0,138.85,138.81,16.5826]
[1720836725615,20.0,138.85,138.81,16.0826]
[1720836727003,20.0,138.85,138.82,16.5824]
[1720836727898,22.0444,138.86,138.84,11.54]
[1720836728107,15.4951,138.86,138.84,11.54]
[1720836728511,20.0,138.85,138.84,11.54]
[1720836729722,20.0,138.85,138.82,11.54]
[1720836731813,20.0,138.85,138.82,16.5823]
[1720836732126,20.0,138.85,138.82,11.54]
[1720836733316,20.0,138.85,138.81,5.0427]
[1720836733628,20.0,138.85,138.81,11.54]
[1720836733938,20.0,138.85,138.8,16.5831]
[1720836734730,20.0,138.85,138.8,5.0431]
[1720836735024,20.0,138.85,138.8,16.5831]
[1720836737611,37.7433,138.85,138.79,5.0435]
[1720836737809,11.54,138.84,138.79,5.0435]
[1720836738002,11.54,138.83,138.79,5.0435]
[1720836738806,11.54,138.84,138.79,5.0435]
[1720836739211,11.54,138.84,138.79,17.25326239]
[1720836739508,11.54,138.84,138.79,16.5835]
[1720836740002,37.7433,138.85,138.8,5.0432]
[1720836742319,11.54,138.84,138.8,5.0432]
[1720836743632,20.0,138.83,138.79,5.0434]
[1720836743841,6.2775,138.8,138.75,0.8573956]
[1720836744030,11.54,138.76,138.75,0.8573956]
[1720836744511,31.54,138.76,138.75,0.8573956]
[1720836745341,10.0,138.74,138.62,16.2292956]
[1720836745644,11.54,138.72,138.62,16.2292956]
[1720836745813,11.54,138.72,138.66,11.54]
[1720836746240,11.54,138.72,138.66,11.04]
[1720836746624,11.54,138.72,138.67,11.54]
[1720836746945,10.0,138.74,138.67,11.54]
[1720836747124,11.54,138.72,138.67,11.54]
[1720836747326,11.54,138.72,138.67,11.04]
[1720836748255,21.9622,138.71,138.62,0.8573956]
[1720836748439,21.9622,138.71,138.65,11.54]
[1720836748440,20.0,138.7,138.65,11.54]
[1720836748747,20.0,138.7,138.68,11.54]
[1720836749450,20.0,138.7,138.62,0.8573956]
[1720836749635,20.0,138.7,138.67,11.54]
[1720836749823,20.0,138.7,138.62,0.8573956]
[1720836750026,20.0,138.7,138.66,11.54]
[1720836750238,20.0,138.7,138.67,11.54]
[1720836750438,20.0,138.7,138.62,0.8573956]
[1720836750617,20.0,138.7,138.68,11.54]
[1720836750818,20.0,138.7,138.62,0.8573956]
[1720836751023,20.0,138.7,138.67,11.54]
[1720836751244,20.0,138.7,138.67,16.5879]
[1720836751639,20.0,138.7,138.66,11.54]
[1720836752136,20.0,138.7,138.65,16.5883]
[1720836752550,20.0,138.7,138.66,5.0481]
[1720836752851,20.0,138.7,138.66,16.5881]
[1720836753356,20.0,138.7,138.67,5.0479]
[1720836753537,20.0,138.7,138.66,16.5881]
[1720836754047,27.2247,138.71,138.66,16.5881]
[1720836755647,27.2247,138.71,138.66,5.0481]
[1720836755956,27.2247,138.71,138.66,16.5881]
[1720836756141,27.2247,138.71,138.66,5.0481]
[1720836756331,27.2247,138.71,138.66,16.5881]
[1720836756647,15.6847,138.71,138.66,16.5881]
[1720836756851,27.2247,138.71,138.66,16.5881]
[1720836759755,27.2247,138.71,138.66,5.0481]
[1720836759956,27.2247,138.71,138.64,5.0489]
[1720836760131,27.2247,138.71,138.65,16.5885]
[1720836760549,27.2247,138.71,138.66,5.0482]
[1720836761429,15.6847,138.71,138.66,5.0482]
[1720836761626,15.6847,138.71,138.67,5.0479]
[1720836762438,27.2247,138.71,138.66,16.5882]
[1720836763355,27.2247,138.71,138.66,5.0482]
[1720836763562,27.2247,138.71,138.66,16.5882]
[1720836764230,27.2247,138.71,138.67,5.0479]
[1720836764430,15.6847,138.71,138.68,5.0475]
[1720836764651,22.5763,138.75,138.69,16.587]
[1720836764862,22.5763,138.75,138.7,16.5868]
[1720836765156,34.1163,138.75,138.7,5.0468]
[1720836765343,11.54,138.74,138.69,5.0471]
[1720836765546,11.54,138.74,138.68,11.54]
[1720836765854,11.54,138.73,138.68,16.5873]
[1720836766154,11.54,138.73,138.69,5.0471]
[1720836766329,11.54,138.74,138.69,5.0471]
[1720836767156,11.54,138.74,138.69,16.5871]
[1720836768845,11.54,138.74,138.69,11.54]
[1720836769343,11.54,138.74,138.68,11.54]